[Event "FISCA Open 2022"]
[Site "Cap Aurora"]
[Date "2022.06.25"]
[Round "5.1"]
[White "Ardeleanu, Alin"]
[Black "Petre, Nad-Titus"]
[Result "1-0"]
[ECO "C68"]
[WhiteElo "2290"]
[BlackElo "2297"]
[Annotator "TA"]
[PlyCount "43"]
[EventDate "2022.06.22"]
[EventType "swiss"]
[EventCountry "ROU"]
[SourceTitle "playchess.com"]
[Source "ChessBase"]
[SourceQuality "1"]
[TimeControl "5400+30"]

{[%evp 9,43,0,31,35,31,12,27,23,114,115,193,207,274,282,278,273,319,316,652,631,558,120,133,127,135,134,130,127,137,125,124,125,144,146,152,158]} 1. e4 {[%emt 0:00:02]} e5 {[%emt 0:01:35]} 2. Nf3 {[%emt 0:00:37]} Nc6 {[%emt 0:00:05]} 3. Bb5 {[%emt 0:01:30]} a6 {[%emt 0:00:26]} 4. Bxc6 {[%emt 0:01:26]} dxc6 {[%emt 0:00:07]} 5. Nc3 {[%emt 0:00:15]} Qf6 {[%emt 0:11:15]} 6. d4 {[%emt 0:06:08] C68: Ruy Lopez: Exchange Variation, sidelines.} exd4 {[%emt 0:01:01]} 7. Qxd4 {[%emt 0:00:23]} Be6 {[%emt 0:14:04]} 8. Be3 {[#] White has an edge.} c5 $146 {[%emt 0:00:30]} (8... Qxd4 $11 {remains equal.} 9. Nxd4 Nf6) ({Predecessor:} 8... Qxd4 9. Bxd4 Nf6 10. Bxf6 gxf6 11. a3 Rg8 12. Nh4 O-O-O 13. O-O Bd6 14. Rad1 Be5 15. Rxd8+ {½-½ (15) Altenburg,N (1665)-Buenjer,C (1945) DESC email 2001}) 9. Qa4+ $16 c6 {[%emt 0:00:30] [#]} (9... Bd7 $16 {was worth a try.} 10. Qa3 Ne7) 10. O-O-O $1 $18 {Hoping for Bg5.} Be7 {[%emt 0:00:30]} 11. Nd5 Bxd5 {[%emt 0:00:30]} 12. exd5 b5 {[%emt 0:00:30]} 13. Qe4 {Threatens to win with d6.} cxd5 {[%emt 0:00:30] [#]} (13... O-O-O 14. Ne5 (14. dxc6 Qe6 $18) 14... Bd6) 14. Rxd5 Qg6 {[%emt 0:00:30]} 15. Qxg6 (15. Rf5 $18 {is the precise move to win.} Rc8 16. Rd1 (16. Ne5 Qe6 $14)) 15... hxg6 $16 {[%emt 0:00:30]} 16. Bxc5 {White is more active.} Rh5 {[%emt 0:00:30]} 17. Rxh5 gxh5 {[%emt 0:00:30]} 18. Re1 Rc8 {[%emt 0:00:30]} 19. Bxe7 Nxe7 {[%emt 0:00:30]} 20. Re4 f6 {[%emt 0:00:30]} 21. Re6 Rc6 {[%emt 0:00:30]} 22. Nd4 {Weighted Error Value: White=0.41/Black=0.48} 1-0

[Event "FISCA Open 2022"]
[Site "Cap Aurora"]
[Date "2022.06.25"]
[Round "5.2"]
[White "Gilea, Lucian"]
[Black "Girmacea, Bogdan"]
[Result "1-0"]
[ECO "A40"]
[WhiteElo "2277"]
[BlackElo "2133"]
[Annotator "TA"]
[PlyCount "57"]
[EventDate "2022.06.22"]
[EventType "swiss"]
[EventCountry "ROU"]
[SourceTitle "playchess.com"]
[Source "ChessBase"]
[SourceQuality "1"]
[TimeControl "5400+30"]

{[%evp 9,57,0,0,0,0,0,6,0,0,0,6,0,0,0,0,0,52,51,68,39,38,20,15,5,30,0,31,0,0,-15,-14,-29,-26,-35,7,-35,-16,-11,571,581,683,737,730,734,29980,733,5810,725,29990,29991]} 1. d4 {[%emt 0:00:03]} e6 {[%emt 0:00:53]} 2. g3 {[%emt 0:01:04]} b5 {[%emt 0:05:29]} 3. Bg2 {[%emt 0:02:43]} d5 {[%emt 0:00:11]} 4. a4 {[%emt 0:01:20]} b4 {[%emt 0:00:19]} 5. c4 {[%emt 0:00:07]} bxc3 {[%emt 0:00:15]} 6. bxc3 {[%emt 0:00:02] A40: Unusual replies to 1 d4.} Ba6 {[%emt 0:02:46]} 7. Nf3 {[%emt 0:00:41]} Nd7 {[%emt 0:00:40]} 8. O-O {[%emt 0:02:11] The position is equal.} Ngf6 {[%emt 0:01:17] [#]} 9. Nbd2 $146 {[%emt 0:01:59][%cal Oc3c4,Bb1d2,Bd2b3,Bb3d4,Bd4f5][%mdl 32]} ({Predecessor:} 9. Ba3 c5 10. Nbd2 Rc8 11. Rc1 Be7 12. c4 O-O 13. Qb3 Nb6 14. cxd5 c4 15. Qa2 exd5 {½-½ (51) Perelshteyn,E (2528)-Meier,G (2659) Lubbock 2010}) 9... Rb8 {[%emt 0:03:53]} 10. Re1 {[%emt 0:01:03]} Bd6 {[%emt 0:03:12]} 11. Qc2 {[%emt 0:02:34]} O-O {[%emt 0:02:01]} 12. c4 {[%emt 0:05:47][%cal Bc3c4,Bc4c5][%mdl 32]} h6 {[%emt 0:10:49]} ({Better is} 12... c5 $11) 13. c5 $1 $14 {[%emt 0:03:47]} Be7 {[%emt 0:00:10]} 14. Nb3 {[%emt 0:00:22] aiming for Na5.} (14. c6 $5 {[%cal Rc6d7]} Nb6 15. Ne5 $14) 14... c6 {[%emt 0:05:49]} 15. Nfd2 {[%emt 0:07:19]} e5 {[%emt 0:05:56]} 16. dxe5 {[%emt 0:00:21]} Nxe5 {[%emt 0:00:44]} (16... Ng4 {feels hotter.} 17. f4 Ne3 18. Qc3 Nc4) 17. Nd4 {[%emt 0:05:40]} (17. Bb2 $5 {[%cal Rb2e5]} Nfd7 18. Bd4 $11) 17... Qc7 {[%emt 0:14:53]} 18. Nf5 {[%emt 0:04:35]} Rfe8 {[%emt 0:01:19]} 19. Nxe7+ {[%emt 0:02:48]} Rxe7 {[%emt 0:01:43]} 20. Bb2 {[%emt 0:02:01]} Rbe8 {[%emt 0:00:54][%cal Oe5d3]} 21. Nf3 {[%emt 0:14:12]} Nfd7 {[%emt 0:07:54]} 22. Qc3 {[%emt 0:01:22]} f6 {[%emt 0:01:38][%cal Oa6e2]} 23. Nd4 {[%emt 0:00:16]} Nd3 $2 {[%emt 0:01:54][%mdl 8192] This move loses the game for Black.} 24. exd3 $18 {[%emt 0:00:06]} Rxe1+ {[%emt 0:00:56]} 25. Rxe1 {[%emt 0:00:02]} Rxe1+ {[%emt 0:00:18]} 26. Qxe1 {[%emt 0:00:03] [#] Hoping for Qe7.} Nxc5 {[%emt 0:00:14]} 27. Qe8+ {[%emt 0:00:45]} Kh7 {[%emt 0:00:29]} 28. Nxc6 {[%emt 0:00:40]} (28. Bh3 $142 Bxd3 29. Ne6) 28... Bxd3 {[%emt 0:04:56]} 29. Ne7 {[%emt 0:00:21] Weighted Error Value: White=0.13 (very precise) /Black=0.93} 1-0

[Event "FISCA Open 2022"]
[Site "Cap Aurora"]
[Date "2022.06.25"]
[Round "5.3"]
[White "Coca, Cristi-Iulian"]
[Black "Nicolae, Marian-Valentin"]
[Result "1-0"]
[ECO "B15"]
[WhiteElo "2174"]
[BlackElo "1886"]
[Annotator "RC"]
[PlyCount "79"]
[EventDate "2022.06.22"]
[EventType "swiss"]
[EventCountry "ROU"]
[SourceTitle "playchess.com"]
[Source "ChessBase"]
[SourceQuality "1"]
[TimeControl "5400+30"]

1. e4 {[%emt 0:00:22]} c6 {[%emt 0:03:43]} 2. d4 {[%emt 0:00:12]} d5 {[%emt 0:00:10]} 3. Nc3 {[%emt 0:00:04]} dxe4 {[%emt 1:28:07]} 4. Nxe4 {[%emt 1:31:52]} Nf6 {[%emt 0:00:00]} 5. Nxf6+ {[%emt 0:00:00]} exf6 {[%emt 0:00:00]} 6. c3 {[%emt 0:00:00]} Bd6 {[%emt 0:00:00]} 7. Bd3 {[%emt 0:00:00]} O-O {[%emt 0:00:00]} 8. Qc2 {[%emt 0:00:00]} Re8+ {[%emt 0:00:00]} 9. Ne2 {[%emt 0:00:00]} h6 {[%emt 0:00:00]} 10. Be3 {[%emt 0:00:00]} Qc7 {[%emt 0:00:00]} 11. h3 {[%emt 0:00:00]} Nd7 {[%emt 0:00:00]} 12. O-O {[%emt 0:00:00]} Nf8 {[%emt 0:00:00]} 13. c4 {[%emt 0:00:00]} Ne6 {[%emt 0:00:00]} 14. f4 {[%emt 0:00:00]} Nf8 {[%emt 0:00:00]} 15. Rf3 {[%emt 0:00:00]} g6 {[%emt 0:00:00]} 16. c5 {[%emt 0:00:00]} Be7 {[%emt 0:00:00]} 17. f5 {[%emt 0:00:00]} g5 {[%emt 0:00:00]} 18. Bf2 {[%emt 0:00:00]} Qd7 {[%emt 0:00:00]} 19. Nc3 {[%emt 0:00:00]} b6 {[%emt 0:00:00]} 20. Ne4 {[%emt 0:00:00]} Kg7 {[%emt 0:00:00]} 21. Re1 {[%emt 0:00:00]} Bb7 {[%emt 0:00:00]} 22. Rfe3 {[%emt 0:00:00]} Rad8 {[%emt 0:00:00]} 23. Ng3 {[%emt 0:00:00]} Nh7 {[%emt 0:00:00]} 24. Qe2 {[%emt 0:00:00]} Kf8 {[%emt 0:00:00]} 25. Qh5 {[%emt 0:00:00]} Kg7 {[%emt 0:00:00]} 26. Bc4 {[%emt 0:00:00]} Bf8 {[%emt 0:00:00]} 27. Bxf7 {[%emt 0:00:00]} Qxf7 {[%emt 0:00:00]} 28. Rxe8 {[%emt 0:00:00]} Rxe8 {[%emt 0:00:00]} 29. Rxe8 {[%emt 0:00:00]} bxc5 {[%emt 0:00:00]} 30. dxc5 {[%emt 0:00:00]} Ba6 {[%emt 0:00:00]} 31. Qxf7+ {[%emt 0:00:00]} Kxf7 {[%emt 0:00:00]} 32. Ra8 {[%emt 0:00:00]} Bc4 {[%emt 0:00:00]} 33. Rxa7+ {[%emt 0:00:00]} Kg8 {[%emt 0:00:00]} 34. a4 {[%emt 0:00:00]} Bd3 {[%emt 0:00:00]} 35. a5 {[%emt 0:00:00]} h5 {[%emt 0:00:00]} 36. a6 {[%emt 0:00:00]} h4 {[%emt 0:00:00]} 37. Nf1 {[%emt 0:00:00]} g4 {[%emt 0:00:00]} 38. Rxh7 {[%emt 0:00:00]} g3 {[%emt 0:01:11]} 39. Be3 {[%emt 0:00:00]} Bxa6 {[%emt 0:00:27]} 40. Rxh4 {[%emt 0:00:00]} 1-0

[Event "FISCA Open 2022"]
[Site "Cap Aurora"]
[Date "2022.06.25"]
[Round "5.4"]
[White "Breahna, Radu"]
[Black "Negrean, Andrei"]
[Result "1-0"]
[ECO "A14"]
[WhiteElo "2142"]
[BlackElo "1846"]
[Annotator "NA RC"]
[PlyCount "123"]
[EventDate "2022.06.22"]
[EventType "swiss"]
[EventCountry "ROU"]
[SourceTitle "playchess.com"]
[Source "ChessBase"]
[SourceQuality "1"]
[TimeControl "5400+30"]

1. c4 {[%emt 0:05:45]} Nf6 {[%emt 0:00:18]} 2. g3 {[%emt 0:00:24]} e6 {[%emt 0:00:38]} 3. Bg2 {[%emt 0:01:13]} d5 {[%emt 0:00:35]} 4. Nf3 {[%emt 0:01:09]} Be7 {[%emt 0:04:50]} 5. O-O {[%emt 0:04:09]} O-O {[%emt 0:02:37]} 6. b3 {[%emt 0:02:46]} b6 {[%emt 0:03:24]} 7. Bb2 {[%emt 0:02:23]} Bb7 {[%emt 0:00:20]} 8. d3 {[%emt 0:02:55]} Nbd7 {[%emt 0:08:02]} 9. Nbd2 {[%emt 0:03:30]} c5 {[%emt 0:05:11]} 10. e3 {[%emt 0:03:33]} Qc7 {[%emt 0:05:29]} 11. Qc2 {[%emt 0:01:39]} e5 {[%emt 0:09:56]} 12. cxd5 {[%emt 0:00:50]} Nxd5 {[%emt 0:04:42]} 13. a3 {[%emt 0:00:58]} Rac8 {[%emt 0:13:08]} 14. Nc4 {[%emt 0:04:19]} Bf6 {[%emt 0:06:46]} 15. Rac1 {[%emt 0:03:34]} b5 {[%emt 0:13:17]} 16. Ncd2 {[%emt 0:01:06]} Qb8 {[%emt 0:05:57]} 17. Qb1 {[%emt 0:04:30]} N5b6 {[%emt 0:08:55]} 18. Qa1 {[%emt 0:06:00]} Rfe8 {[%emt 0:02:21]} 19. Rfd1 {[%emt 0:03:48]} Nf8 {[%emt 0:02:59]} 20. h4 {[%emt 0:12:23]} h5 {[%emt 0:01:04]} 21. Bh3 {[%emt 0:01:15]} Nbd7 {[%emt 0:00:00]} 22. Ne4 {[%emt 0:11:49]} Bxe4 {[%emt 0:00:22]} 23. dxe4 {[%emt 0:00:14]} Rcd8 {[%emt 0:00:35]} 24. Rd5 {[%emt 0:00:57]} Qb7 {[%emt 0:00:31]} 25. Rcd1 {[%emt 0:02:08]} Nb6 {[%emt 0:00:28]} 26. Rxd8 {[%emt 0:00:39]} Rxd8 {[%emt 0:00:32]} 27. Rxd8 {[%emt 0:01:17]} Bxd8 {[%emt 0:00:07]} 28. Nxe5 {[%emt 0:00:49]} Qxe4 {[%emt 0:00:36]} 29. Bg2 {[%emt 0:01:13]} Qf5 {[%emt 0:00:48]} 30. Nc6 {[%emt 0:01:03]} Bf6 {[%emt 0:00:25]} 31. Bxf6 {[%emt 0:01:28]} Qxf6 {[%emt 0:00:01]} 32. Qxf6 {[%emt 0:16:44]} gxf6 {[%emt 0:01:36]} 33. Nxa7 {[%emt 0:00:00]} c4 {[%emt 0:00:00]} 34. b4 {[%emt 0:00:00]} c3 {[%emt 0:00:21]} 35. Be4 {[%emt 0:00:00]} Nfd7 {[%emt 0:00:38]} 36. Nxb5 {[%emt 0:00:00]} Na4 {[%emt 0:00:22]} 37. Bc2 {[%emt 0:00:00]} Ndb6 {[%emt 0:00:15]} 38. Kf1 {[%emt 0:00:00]} Kf8 {[%emt 0:00:48]} 39. Ke2 {[%emt 0:00:00]} Ke7 {[%emt 0:00:12]} 40. Kd3 {[%emt 0:00:00]} Ke6 {[%emt 0:00:31]} 41. Bxa4 {[%emt 0:00:00]} Nxa4 {[%emt 0:00:00]} 42. Nxc3 {[%emt 0:00:00]} Nb6 {[%emt 0:00:17]} 43. a4 {[%emt 0:00:00]} f5 {[%emt 0:00:21]} 44. a5 {[%emt 0:00:00]} Nd7 {[%emt 0:00:07]} 45. Kd4 {[%emt 0:00:00]} Kd6 {[%emt 0:00:20]} 46. Nd5 {[%emt 0:00:00]} Kc6 {[%emt 0:00:11]} 47. Ne7+ {[%emt 0:00:00]} Kb5 {[%emt 0:00:07]} 48. Nxf5 {[%emt 0:00:00]} Nb8 {[%emt 0:00:43]} 49. Kc3 {[%emt 0:00:00]} Ka4 {[%emt 0:01:18]} 50. Nd6 {[%emt 0:00:00]} f6 {[%emt 0:00:38]} 51. g4 {[%emt 0:01:24]} hxg4 {[%emt 0:00:25]} 52. h5 {[%emt 0:00:09]} Nd7 {[%emt 0:00:14]} 53. h6 {[%emt 0:00:15]} Nf8 {[%emt 0:00:11]} 54. a6 {[%emt 0:00:12]} Ne6 {[%emt 0:00:11]} 55. h7 {[%emt 0:00:18]} g3 {[%emt 0:00:08]} 56. fxg3 {[%emt 0:00:10]} f5 {[%emt 0:00:07]} 57. h8=Q {[%emt 0:00:21]} f4 {[%emt 0:00:08]} 58. Qe8+ {[%emt 0:00:24]} Ka3 {[%emt 0:00:07]} 59. Nc4+ {[%emt 0:00:13]} Ka2 {[%emt 0:00:04]} 60. Qa4+ {[%emt 0:00:15]} Kb1 {[%emt 0:00:10]} 61. Qc2+ {[%emt 0:00:14]} Ka1 {[%emt 0:00:08]} 62. Qb2# {[%emt 0:11:05]} 1-0

[Event "FISCA Open 2022"]
[Site "Cap Aurora"]
[Date "2022.06.25"]
[Round "5.5"]
[White "Mintau, Andrei-Catalin"]
[Black "Angheluta, Ovidiu"]
[Result "1-0"]
[ECO "B01"]
[WhiteElo "2130"]
[BlackElo "1807"]
[Annotator "NA RC"]
[PlyCount "95"]
[EventDate "2022.06.22"]
[EventType "swiss"]
[EventCountry "ROU"]
[SourceTitle "playchess.com"]
[Source "ChessBase"]
[SourceQuality "1"]
[TimeControl "5400+30"]

1. e4 {[%emt 0:00:02]} d5 {[%emt 0:03:05]} 2. exd5 {[%emt 0:00:16]} Qxd5 {[%emt 0:00:02]} 3. Nc3 {[%emt 0:00:06]} Qa5 {[%emt 0:00:02]} 4. d4 {[%emt 0:00:04]} c6 {[%emt 0:00:20]} 5. Nf3 {[%emt 0:01:35]} Nf6 {[%emt 0:00:12]} 6. Ne5 {[%emt 0:00:37]} Bf5 {[%emt 0:03:41]} 7. Bd2 {[%emt 0:10:59]} e6 {[%emt 0:05:19]} 8. g4 {[%emt 0:00:42]} Bg6 {[%emt 0:01:41]} 9. h4 {[%emt 0:00:04]} Bb4 {[%emt 0:34:46]} 10. h5 {[%emt 0:10:11]} Bxc3 {[%emt 0:22:05]} 11. Bxc3 {[%emt 0:00:28]} Qd5 {[%emt 0:00:18]} 12. f3 {[%emt 0:00:05]} Nxg4 {[%emt 0:01:04]} 13. Nxg4 {[%emt 0:04:11]} Bxh5 {[%emt 0:00:42]} 14. Ne5 {[%emt 0:00:12]} g6 {[%emt 0:02:26]} 15. Bc4 {[%emt 0:01:02]} Qd6 {[%emt 0:00:27]} 16. Qd2 {[%emt 0:05:40]} Nd7 {[%emt 0:02:18]} 17. Be2 {[%emt 0:20:15]} Nxe5 {[%emt 0:10:15]} 18. dxe5 {[%emt 0:00:05]} Qxd2+ {[%emt 0:00:11]} 19. Bxd2 {[%emt 0:00:10]} O-O-O {[%emt 0:00:27]} 20. Bg5 {[%emt 0:01:18]} Rd5 {[%emt 0:02:46]} 21. Bf6 {[%emt 0:00:06]} Re8 {[%emt 0:00:01]} 22. Rd1 {[%emt 0:00:12]} Kd7 {[%emt 0:00:29]} 23. f4 {[%emt 0:01:12]} Rxd1+ {[%emt 0:01:25]} 24. Kxd1 {[%emt 0:00:11]} Bxe2+ {[%emt 0:00:25]} 25. Kxe2 {[%emt 0:00:02]} h5 {[%emt 0:00:11]} 26. Rd1+ {[%emt 0:00:10]} Kc7 {[%emt 0:00:30]} 27. Kf3 {[%emt 0:00:02]} c5 {[%emt 0:00:47]} 28. Rd6 {[%emt 0:00:37]} a5 {[%emt 0:02:24]} 29. Kg3 {[%emt 0:00:04]} a4 {[%emt 0:01:35]} 30. Kh4 {[%emt 0:04:29]} b5 {[%emt 0:01:04]} 31. Kg5 {[%emt 0:00:17]} Rc8 {[%emt 0:00:24]} 32. Kh6 {[%emt 0:01:07]} Kb7 {[%emt 0:01:12]} 33. Kg7 {[%emt 0:00:08]} b4 {[%emt 0:01:14]} 34. Kxf7 {[%emt 0:01:03]} c4 {[%emt 0:01:37]} 35. Kxe6 {[%emt 0:02:51]} b3 {[%emt 0:01:39]} 36. axb3 {[%emt 0:00:47]} c3 {[%emt 0:00:14]} 37. bxc3 {[%emt 0:00:05]} a3 {[%emt 0:00:13]} 38. Rd1 {[%emt 0:00:04]} Rxc3 {[%emt 0:00:34]} 39. Ra1 {[%emt 0:00:10]} Rxc2 {[%emt 0:00:35]} 40. Rxa3 {[%emt 0:00:05]} Rf2 {[%emt 0:00:11]} 41. Ra4 {[%emt 0:00:38]} Rf3 {[%emt 0:00:41]} 42. Rb4+ {[%emt 0:00:04]} Kc6 {[%emt 0:00:29]} 43. Kf7 {[%emt 0:00:20]} Kc5 {[%emt 0:01:19]} 44. Rc4+ {[%emt 0:00:04]} Kd5 {[%emt 0:00:07]} 45. e6 {[%emt 0:00:05]} Rxb3 {[%emt 0:00:20]} 46. Rd4+ {[%emt 0:00:04]} Kc5 {[%emt 0:00:06]} 47. e7 {[%emt 0:00:06]} Rb7 {[%emt 0:02:07]} 48. Kf8 {[%emt 0:41:25]} 1-0

[Event "FISCA Open 2022"]
[Site "Cap Aurora"]
[Date "2022.06.25"]
[Round "5.7"]
[White "Sprincean, Lukas George"]
[Black "Prisacaru, Stefan-Emilian"]
[Result "0-1"]
[ECO "B06"]
[WhiteElo "1664"]
[BlackElo "1937"]
[Annotator "NA RC"]
[PlyCount "120"]
[EventDate "2022.06.22"]
[EventType "swiss"]
[EventCountry "ROU"]
[SourceTitle "playchess.com"]
[Source "ChessBase"]
[SourceQuality "1"]
[TimeControl "5400+30"]

1. e4 {[%emt 0:00:09]} g6 {[%emt 0:00:03]} 2. d4 {[%emt 0:01:03]} Bg7 {[%emt 0:00:03]} 3. h4 {[%emt 0:00:21]} d5 {[%emt 0:00:57]} 4. e5 {[%emt 0:01:30]} c5 {[%emt 0:00:05]} 5. c3 {[%emt 0:01:06]} h5 {[%emt 0:00:15]} 6. Nf3 {[%emt 0:07:31]} Nc6 {[%emt 0:00:19]} 7. Be2 {[%emt 0:10:17]} Bg4 {[%emt 0:01:08]} 8. dxc5 {[%emt 0:02:38]} Bxf3 {[%emt 0:00:24]} 9. Bxf3 {[%emt 0:00:30]} e6 {[%emt 0:00:02]} 10. Bf4 {[%emt 0:09:48]} Nxe5 {[%emt 0:03:07]} 11. Bxe5 {[%emt 0:18:25]} Bxe5 {[%emt 0:00:01]} 12. Qe2 {[%emt 0:02:40]} Bg7 {[%emt 0:02:48]} 13. Qb5+ {[%emt 0:03:33]} Qd7 {[%emt 0:01:52]} 14. Qxd7+ {[%emt 0:04:39]} Kxd7 {[%emt 0:00:01]} 15. O-O {[%emt 0:00:23]} Kc6 {[%emt 0:03:07]} 16. Nd2 {[%emt 0:01:59]} Kxc5 {[%emt 0:00:23]} 17. c4 {[%emt 0:07:29]} Ne7 {[%emt 0:04:53]} 18. cxd5 {[%emt 0:02:23]} exd5 {[%emt 0:04:20]} 19. Rac1+ {[%emt 0:01:25]} Kb6 {[%emt 0:03:04]} 20. Rfe1 {[%emt 0:01:05]} Bf6 {[%emt 0:01:24]} 21. Re3 {[%emt 0:04:10]} a6 {[%emt 0:10:39]} 22. Rce1 {[%emt 0:02:11]} Nc6 {[%emt 0:04:02]} 23. Bxd5 {[%emt 0:01:31]} Rad8 {[%emt 0:03:01]} 24. Nc4+ {[%emt 0:00:46]} Kc7 {[%emt 0:00:07]} 25. Bxc6 {[%emt 0:02:31]} bxc6 {[%emt 0:03:56]} 26. Rf3 {[%emt 0:00:14]} Bxh4 {[%emt 0:01:02]} 27. Rxf7+ {[%emt 0:00:06]} Rd7 {[%emt 0:00:36]} 28. Rxd7+ {[%emt 0:00:27]} Kxd7 {[%emt 0:00:22]} 29. Ne5+ {[%emt 0:00:02]} Kc7 {[%emt 0:00:35]} 30. Nxg6 {[%emt 0:00:06]} Rb8 {[%emt 0:00:08]} 31. Nxh4 {[%emt 0:00:19]} Rxb2 {[%emt 0:00:05]} 32. Ra1 {[%emt 0:04:05]} c5 {[%emt 0:00:14]} 33. Nf3 {[%emt 0:00:47]} Kc6 {[%emt 0:00:21]} 34. Ne5+ {[%emt 0:01:20]} Kd5 {[%emt 0:00:37]} 35. Nd3 {[%emt 0:00:42]} Rd2 {[%emt 0:01:03]} 36. Nf4+ {[%emt 0:00:23]} Kd4 {[%emt 0:01:13]} 37. Kf1 {[%emt 0:02:48]} c4 {[%emt 0:01:15]} 38. Ke1 {[%emt 0:02:21]} Rb2 {[%emt 0:00:31]} 39. Nxh5 {[%emt 0:01:22]} c3 {[%emt 0:00:16]} 40. Ng3 {[%emt 0:00:57]} c2 {[%emt 0:03:04]} 41. Ne2+ {[%emt 0:02:11]} Kd3 {[%emt 0:00:05]} 42. Nc1+ {[%emt 0:02:37]} Kc3 {[%emt 0:00:01]} 43. Ne2+ {[%emt 0:00:02]} Kd3 {[%emt 0:00:01]} 44. Rc1 {[%emt 0:00:48]} Rxa2 {[%emt 0:00:04]} 45. Nf4+ {[%emt 0:00:26]} Kc3 {[%emt 0:00:05]} 46. Nd5+ {[%emt 0:00:30]} Kc4 {[%emt 0:03:45]} 47. Nb6+ {[%emt 0:00:28]} Kd3 {[%emt 0:00:31]} 48. Nd5 {[%emt 0:00:53]} Rb2 {[%emt 0:00:06]} 49. Nf4+ {[%emt 0:00:22]} Kc3 {[%emt 0:00:44]} 50. Nd5+ {[%emt 0:00:35]} Kd3 {[%emt 0:00:01]} 51. Nf4+ {[%emt 0:00:30]} Kc3 {[%emt 0:00:01]} 52. Ne2+ {[%emt 0:00:01]} Kd3 {[%emt 0:00:05]} 53. g4 {[%emt 0:00:44]} Rb4 {[%emt 0:03:49]} 54. f3 {[%emt 0:00:46]} a5 {[%emt 0:00:02]} 55. g5 {[%emt 0:00:33]} Rh4 {[%emt 0:00:47]} 56. Ng3 {[%emt 0:00:25]} Rh3 {[%emt 0:00:10]} 57. Kf2 {[%emt 0:00:22]} Rh2+ {[%emt 0:02:11]} 58. Kg1 {[%emt 0:00:42]} Rd2 {[%emt 0:00:06]} 59. Ne2 {[%emt 0:00:31]} Kxe2 {[%emt 0:02:36]} 60. g6 {[%emt 0:00:01]} Rd1+ {[%emt 0:00:11]} 0-1

[Event "FISCA Open 2022"]
[Site "Cap Aurora"]
[Date "2022.06.25"]
[Round "5.8"]
[White "Puia, Alexia-Teodora"]
[Black "Capragiu, Matei-Stefan"]
[Result "0-1"]
[ECO "D01"]
[WhiteElo "1787"]
[BlackElo "1925"]
[Annotator "NA RC"]
[PlyCount "52"]
[EventDate "2022.06.22"]
[EventType "swiss"]
[EventCountry "ROU"]
[SourceTitle "playchess.com"]
[Source "ChessBase"]
[SourceQuality "1"]
[TimeControl "5400+30"]

1. d4 Nf6 2. Nc3 d5 3. Bg5 Nbd7 4. f3 h6 5. Bxf6 Nxf6 6. e4 e6 7. e5 Nd7 8. f4 c5 9. Nf3 cxd4 10. Nxd4 Bb4 11. Qg4 O-O 12. h4 Qb6 13. Rd1 Nc5 14. Rh3 Ne4 15. Be2 f6 16. Rf3 fxe5 17. fxe5 Bd7 18. a3 {[%emt 0:09:00]} Rxf3 {[%emt 0:09:00]} 19. Bxf3 {[%emt 0:00:30]} Nxc3 {[%emt 0:00:30]} 20. bxc3 {[%emt 0:00:30]} Bxc3+ {[%emt 0:00:30]} 21. Kf1 {[%emt 0:00:30]} Rf8 {[%emt 0:00:30]} 22. Kg1 {[%emt 0:00:30]} Rf5 {[%emt 0:00:30]} 23. Kh2 {[%emt 0:00:30]} Bxd4 {[%emt 0:00:30]} 24. Rxd4 {[%emt 0:00:30]} Qc7 {[%emt 0:00:30]} 25. c4 {[%emt 0:00:30]} Qxe5+ {[%emt 0:00:30]} 26. Kh3 {[%emt 0:00:30]} h5 {[%emt 0:00:30]} 0-1

[Event "FISCA Open 2022"]
[Site "Cap Aurora"]
[Date "2022.06.25"]
[Round "5.9"]
[White "Trifoi, Mihaela-Ioana"]
[Black "Miron, Iurii"]
[Result "1-0"]
[ECO "B13"]
[WhiteElo "1949"]
[BlackElo "1769"]
[Annotator "NA RC"]
[PlyCount "95"]
[EventDate "2022.06.22"]
[EventType "swiss"]
[EventCountry "ROU"]
[SourceTitle "playchess.com"]
[Source "ChessBase"]
[SourceQuality "1"]
[TimeControl "5400+30"]

1. e4 {[%emt 0:00:03]} c6 {[%emt 0:05:09]} 2. d4 {[%emt 0:00:18]} d5 {[%emt 0:00:05]} 3. exd5 {[%emt 0:00:06]} cxd5 {[%emt 0:00:07]} 4. Bd3 {[%emt 0:00:05]} Nc6 {[%emt 0:00:02]} 5. c3 {[%emt 0:00:15]} Nf6 {[%emt 0:00:16]} 6. Bf4 {[%emt 0:00:59]} Bg4 {[%emt 0:00:07]} 7. Qb3 {[%emt 0:00:06]} Qd7 {[%emt 0:00:08]} 8. Nd2 {[%emt 0:00:33]} e6 {[%emt 0:00:06]} 9. Ngf3 {[%emt 0:00:24]} Bxf3 {[%emt 0:00:12]} 10. Nxf3 {[%emt 0:00:06]} Bd6 {[%emt 0:00:04]} 11. Be5 {[%emt 0:20:46]} Ng4 {[%emt 0:10:49]} 12. Bxd6 {[%emt 0:04:40]} Qxd6 {[%emt 0:00:10]} 13. O-O {[%emt 0:00:13]} O-O {[%emt 0:00:33]} 14. h3 {[%emt 0:00:25]} Nf6 {[%emt 0:00:46]} 15. Rae1 {[%emt 0:00:34]} Qc7 {[%emt 0:00:35]} 16. Qc2 {[%emt 0:00:24]} Rab8 {[%emt 0:04:38]} 17. Ng5 {[%emt 0:02:37]} g6 {[%emt 0:02:11]} 18. Qd2 {[%emt 0:02:07]} b5 {[%emt 0:07:47]} 19. f4 {[%emt 0:00:30]} b4 {[%emt 0:30:51]} 20. Nf3 {[%emt 0:03:32]} bxc3 {[%emt 0:07:00]} 21. bxc3 {[%emt 0:00:06]} Ne7 {[%emt 0:05:35]} 22. Ne5 {[%emt 0:00:38]} Nf5 {[%emt 0:01:47]} 23. Kh2 {[%emt 0:06:34]} Nd6 {[%emt 0:00:42]} 24. Qf2 {[%emt 0:02:43]} Nfe4 {[%emt 0:02:18]} 25. Bxe4 {[%emt 0:01:00]} Nxe4 {[%emt 0:00:23]} 26. Qh4 {[%emt 0:00:32]} h5 {[%emt 0:10:05]} 27. Rf3 {[%emt 0:03:55]} Rb2 {[%emt 0:04:01]} 28. Rxe4 {[%emt 0:02:21]} dxe4 {[%emt 0:00:02]} 29. Rg3 {[%emt 0:00:06]} Kg7 {[%emt 0:03:53]} 30. Qxh5 {[%emt 0:00:31]} Rh8 {[%emt 0:01:39]} 31. Qg4 {[%emt 0:00:58]} Rh6 {[%emt 0:00:26]} 32. c4 {[%emt 0:05:32]} Qd8 {[%emt 0:01:25]} 33. Qd1 {[%emt 0:07:36]} Rh4 {[%emt 0:02:01]} 34. d5 {[%emt 0:00:58]} Rxf4 {[%emt 0:01:04]} 35. Qd4 {[%emt 0:00:14]} Qb6 {[%emt 0:00:18]} 36. c5 {[%emt 0:01:54]} Qb4 {[%emt 0:00:37]} 37. Qxb4 {[%emt 0:00:56]} Rxb4 {[%emt 0:00:02]} 38. d6 {[%emt 0:00:08]} Rb1 {[%emt 0:01:01]} 39. c6 {[%emt 0:01:10]} Rff1 {[%emt 0:00:31]} 40. Ra3 {[%emt 0:00:21]} Rfd1 {[%emt 0:00:31]} 41. d7 {[%emt 0:01:36]} Rbc1 {[%emt 0:00:30]} 42. Nd3 {[%emt 0:00:58]} exd3 {[%emt 0:00:28]} 43. d8=Q {[%emt 0:00:11]} d2 {[%emt 0:00:23]} 44. Kg3 {[%emt 0:01:44]} Rxc6 {[%emt 0:00:39]} 45. Qd4+ {[%emt 0:00:19]} e5 {[%emt 0:00:29]} 46. Qxe5+ {[%emt 0:00:17]} Rf6 {[%emt 0:00:31]} 47. Rf3 {[%emt 0:00:15]} Re1 {[%emt 0:00:23]} 48. Qxf6+ {[%emt 0:00:06]} 1-0